bitfinex/quotes_BTCUSD_20250218
["timestamp","ask_amount","ask_price","bid_price","bid_amount"]
[1739870941184,5.514e-05,95828.0,95820.0,0.0194926]
[1739870941404,5.514e-05,95828.0,95821.0,0.10250365]
[1739870941609,5.514e-05,95828.0,95822.0,0.02469397]
[1739870941816,5.514e-05,95828.0,95823.0,0.10250365]
[1739870943057,5.514e-05,95828.0,95823.0,0.10450365]
[1739870943271,5.514e-05,95828.0,95823.0,0.10250365]
[1739870943682,5.514e-05,95828.0,95823.0,0.10450365]
[1739870943880,5.514e-05,95828.0,95824.0,0.0410684]
[1739870944090,5.514e-05,95828.0,95825.0,0.10250365]
[1739870945332,5.514e-05,95828.0,95823.0,0.001]
[1739870945524,0.156536,95824.0,95823.0,0.001]
[1739870945726,0.550682,95824.0,95823.0,0.001]
[1739870945939,5.514e-05,95828.0,95823.0,0.001]
[1739870946135,0.156536,95825.0,95818.0,0.1239]
[1739870946377,0.156537,95824.0,95823.0,0.002]
[1739870946590,0.01635262,95827.0,95823.0,0.002]
[1739870946797,0.01635262,95827.0,95818.0,0.1239]
[1739870947183,0.01635262,95827.0,95819.0,0.01239]
[1739870947319,0.01635262,95827.0,95818.0,0.1239]
[1739870947545,0.156535,95826.0,95818.0,0.1239]
[1739870947762,0.109445,95825.0,95818.0,0.1239]
[1739870947967,0.109445,95826.0,95821.0,0.0003404]
[1739870948175,0.109445,95826.0,95823.0,0.001]
[1739870948578,0.109445,95826.0,95821.0,0.0003404]
[1739870949164,0.266978,95826.0,95821.0,0.0003404]
[1739870949406,0.109445,95825.0,95821.0,0.0003404]
[1739870949597,0.109445,95826.0,95821.0,0.0003404]
[1739870949803,0.109455,95826.0,95821.0,0.0003404]
[1739870950009,0.01635262,95827.0,95822.0,0.10250365]
[1739870951438,0.001,95826.0,95822.0,0.10350365]
[1739870951841,0.156538,95823.0,95822.0,0.001]
[1739870952419,0.208715,95825.0,95822.0,0.001]
[1739870952651,0.156539,95823.0,95821.0,0.0003404]
[1739870952859,0.15654,95822.0,95821.0,0.0003404]
[1739870953058,0.208711,95826.0,95821.0,0.0003404]
[1739870953230,0.01735262,95827.0,95821.0,0.0003404]
[1739870953231,0.156538,95824.0,95821.0,0.0003404]
[1739870953592,0.208713,95825.0,95821.0,0.0003404]
[1739870953793,0.5153,95824.0,95821.0,0.0003404]
[1739870953999,0.15654,95822.0,95821.0,0.0003404]
[1739870954199,0.15654,95822.0,95821.0,0.0013404]
[1739870954405,0.15654,95822.0,95821.0,0.0003404]
[1739870955293,0.01635262,95827.0,95821.0,0.0003404]
[1739870955294,0.208712,95826.0,95821.0,0.0003404]
[1739870955495,0.156538,95823.0,95821.0,0.0003404]
[1739870956129,0.208713,95825.0,95821.0,0.0003404]
[1739870956397,0.15654,95822.0,95821.0,0.0003404]
[1739870956827,0.15654,95822.0,95821.0,0.0013404]
[1739870957035,0.15654,95822.0,95821.0,0.0003404]
[1739870959017,0.15654,95822.0,95821.0,0.0013404]
[1739870960702,0.15654,95822.0,95821.0,0.0023404]
[1739870961453,0.15654,95822.0,95821.0,0.0003404]
[1739870961709,0.15654,95822.0,95821.0,0.0013404]
[1739870962637,1.532676,95822.0,95821.0,0.0023404]
[1739870963102,1.440615,95822.0,95821.0,0.0023404]
[1739870963603,0.15654,95822.0,95821.0,0.0023404]
[1739870963864,3.082869,95822.0,95821.0,0.0023404]
[1739870964077,3.81274,95822.0,95821.0,0.0003404]
[1739870964292,3.781462,95822.0,95821.0,0.0003404]
[1739870964499,3.064981,95822.0,95821.0,0.0003404]
[1739870964710,2.593584,95822.0,95821.0,0.0003404]
[1739870964927,2.592584,95822.0,95821.0,0.0003404]
[1739870965138,2.573334,95822.0,95821.0,0.0003404]
[1739870966692,1.743908,95822.0,95821.0,0.0003404]
[1739870966892,0.15754,95822.0,95821.0,0.0003404]
[1739870967149,2.52799014,95822.0,95821.0,0.0003404]
[1739870967389,0.94602614,95822.0,95821.0,0.0003404]
[1739870967770,2.58995814,95822.0,95821.0,0.0003404]
[1739870970087,2.58895814,95822.0,95821.0,0.0003404]
[1739870970319,2.58995814,95822.0,95821.0,0.0003404]
[1739870970704,2.59195814,95822.0,95821.0,0.0003404]
[1739870970899,2.58895814,95822.0,95821.0,0.0003404]
[1739870971100,2.59295814,95822.0,95821.0,0.0003404]
[1739870971331,2.59595814,95822.0,95821.0,0.0003404]
[1739870971944,2.575604,95822.0,95821.0,0.0003404]
[1739870973388,2.579604,95822.0,95821.0,0.0003404]
[1739870973594,2.576604,95822.0,95821.0,0.0003404]
[1739870974000,2.579604,95822.0,95821.0,0.0003404]
[1739870974212,2.483494,95822.0,95821.0,0.0003404]
[1739870974426,1.69521,95822.0,95821.0,0.0003404]
[1739870974634,1.582813,95822.0,95821.0,0.0003404]
[1739870974846,1.532513,95822.0,95821.0,0.0003404]
[1739870975062,1.54886718,95822.0,95821.0,0.0003404]
[1739870975284,1.54186718,95822.0,95821.0,0.0003404]
[1739870975709,1.54486718,95822.0,95821.0,0.0003404]
[1739870976893,1.54886718,95822.0,95821.0,0.0003404]
[1739870977101,1.54586718,95822.0,95821.0,0.0003404]
[1739870977294,1.54886718,95822.0,95821.0,0.0003404]
[1739870977501,1.54486718,95822.0,95821.0,0.0003404]
[1739870977723,1.54586718,95822.0,95821.0,0.0003404]
[1739870978038,1.52718618,95822.0,95821.0,0.0003404]
[1739870978637,1.53018618,95822.0,95821.0,0.0003404]
[1739870982313,1.51745118,95822.0,95821.0,0.0003404]
[1739870982718,1.484445,95822.0,95821.0,0.0003404]
[1739870982920,1.33919,95822.0,95821.0,0.0003404]
[1739870983233,1.269236,95822.0,95821.0,0.0003404]
[1739870983873,1.262236,95822.0,95821.0,0.0003404]
[1739870984240,1.267236,95822.0,95821.0,0.0003404]
[1739870984434,1.265236,95822.0,95821.0,0.0003404]
[1739870984766,1.631861,95822.0,95821.0,0.0003404]
[1739870984965,1.070882,95822.0,95821.0,0.0003404]
[1739870985195,2.280714,95822.0,95821.0,0.0003404]
[1739870985417,1.015964,95822.0,95821.0,0.0003404]
[1739870985620,2.224796,95822.0,95821.0,0.0003404]
[1739870985826,1.045337,95822.0,95821.0,0.0003404]
[1739870986038,2.251169,95822.0,95821.0,0.0003404]
[1739870986242,2.131632,95822.0,95821.0,0.0003404]
[1739870986420,2.127632,95822.0,95821.0,0.0003404]
[1739870986677,2.019941,95822.0,95821.0,0.0003404]
[1739870987180,2.03529524,95822.0,95821.0,0.0003404]
[1739870987389,2.03329524,95822.0,95821.0,0.0003404]
[1739870987594,2.03629524,95822.0,95821.0,0.0003404]
[1739870987807,2.03829524,95822.0,95821.0,0.0003404]
[1739870988029,2.03529524,95822.0,95821.0,0.0003404]
[1739870988232,2.03829524,95822.0,95821.0,0.0003404]
[1739870988449,2.04029524,95822.0,95821.0,0.0003404]
[1739870988654,2.03629524,95822.0,95821.0,0.0003404]
[1739870989068,1.81733424,95822.0,95821.0,0.0003404]
[1739870989485,1.81433424,95822.0,95821.0,0.0003404]
[1739870989927,1.81733424,95822.0,95821.0,0.0003404]
[1739870990338,1.21839624,95822.0,95821.0,0.0003404]
[1739870990538,1.05909924,95822.0,95821.0,0.0003404]
[1739870990751,1.46517224,95822.0,95821.0,0.0003404]
[1739870990938,1.48869424,95822.0,95821.0,0.0003404]
[1739870991144,1.41423124,95822.0,95821.0,0.0003404]
[1739870991354,1.41923124,95822.0,95821.0,0.0003404]
[1739870992015,1.41923124,95822.0,95821.0,0.0776404]
[1739870992016,0.17789424,95822.0,95821.0,0.0776404]
[1739870992239,0.17789424,95822.0,95821.0,0.1237404]
[1739870992669,0.16154,95822.0,95821.0,0.1237404]
[1739870992914,0.15854,95822.0,95821.0,0.1237404]
[1739870993120,0.16154,95822.0,95821.0,0.1237404]
[1739870993336,0.15954,95822.0,95821.0,0.1237404]
[1739870993558,0.15754,95822.0,95821.0,0.1237404]
[1739870993780,0.003,95822.0,95821.0,0.1237404]
[1739870993996,0.15954,95822.0,95821.0,0.1237404]
[1739870994246,0.16154,95822.0,95821.0,0.1237404]
[1739870994446,0.15654,95822.0,95821.0,0.1237404]
[1739870994661,0.15954,95822.0,95821.0,0.1237404]
[1739870994993,0.15854,95822.0,95821.0,0.1237404]
[1739870996650,0.16154,95822.0,95821.0,0.1237404]
[1739870997176,0.1748934,95822.0,95821.0,0.1237404]
[1739870997381,0.1728934,95822.0,95821.0,0.1237404]
[1739870997599,0.1738934,95822.0,95821.0,0.1237404]
[1739870998002,0.1748934,95822.0,95821.0,0.1237404]
[1739870998226,0.1758934,95822.0,95821.0,0.1237404]
[1739870998854,0.9959674,95822.0,95821.0,0.0464404]
[1739870999069,1.0059674,95822.0,95821.0,0.0003404]
[1739870999297,1.0039674,95822.0,95821.0,0.0003404]
[1739870999510,1.0029674,95822.0,95821.0,0.0003404]
[1739870999720,1.0039674,95822.0,95821.0,0.0003404]
[1739870999927,1.0059674,95822.0,95821.0,0.0003404]
[1739871000138,0.6615304,95822.0,95821.0,0.0003404]
[1739871000350,0.6595304,95822.0,95821.0,0.0003404]
[1739871000795,0.6615304,95822.0,95821.0,0.0003404]
[1739871001430,0.1390804,95822.0,95821.0,0.0003404]
[1739871001642,0.1758934,95822.0,95821.0,0.0003404]
[1739871001874,0.15954,95822.0,95821.0,0.0003404]
[1739871002117,0.15806594,95822.0,95821.0,0.0003404]
[1739871002776,5.514e-05,95828.0,95821.0,0.00833444]
[1739871002991,0.001,95822.0,95821.0,0.00833444]
[1739871003212,0.001,95822.0,95821.0,0.38668505]
[1739871003427,0.002,95822.0,95821.0,0.38668505]
[1739871003647,0.156508,95842.0,95825.0,0.0495]
[1739871003870,0.08710693,95840.0,95826.0,0.26661356]
[1739871004095,0.003,95828.0,95827.0,0.0795]
[1739871004303,0.003,95828.0,95827.0,0.18200365]
[1739871005785,0.08710693,95840.0,95828.0,0.0765]
[1739871006008,0.08710693,95840.0,95829.0,0.10250365]
[1739871006221,0.156512,95839.0,95829.0,0.10250365]
[1739871006662,0.00522553,95830.0,95829.0,0.10250365]
[1739871007576,0.00522553,95830.0,95829.0,0.10350365]
[1739871008627,0.00522553,95830.0,95829.0,0.18490365]
[1739871008849,0.00522553,95830.0,95829.0,0.24402991]
[1739871009065,0.778,95830.0,95829.0,0.29532991]
[1739871009927,0.778,95830.0,95829.0,0.23620365]
[1739871010143,0.778,95830.0,95829.0,0.23920365]
[1739871010387,0.778,95830.0,95829.0,0.1347]
[1739871010629,2.400125,95830.0,95829.0,0.004]
[1739871010848,2.330954,95830.0,95829.0,0.004]
[1739871011488,2.35192518,95830.0,95829.0,0.004]
[1739871011943,2.35192518,95830.0,95829.0,0.006]
[1739871012308,1.518729,95830.0,95829.0,0.006]
[1739871012508,0.15654,95822.0,95821.0,0.3288404]
[1739871012661,0.15654,95822.0,95821.0,0.0003404]
[1739871012865,0.778,95830.0,95821.0,0.01322444]
[1739871012866,0.783,95830.0,95821.0,0.01322444]
[1739871013082,0.783,95830.0,95822.0,0.0773]
[1739871013258,0.781,95830.0,95822.0,0.0773]
[1739871013518,0.786,95830.0,95822.0,0.0773]
[1739871013717,0.783,95830.0,95823.0,0.10354715]
[1739871013958,0.939527,95830.0,95823.0,0.10250365]
[1739871014167,0.15653,95829.0,95823.0,0.10250365]
[1739871014322,0.783,95830.0,95823.0,0.10250365]
[1739871014736,0.939527,95830.0,95823.0,0.10250365]
[1739871014946,0.778,95830.0,95823.0,0.10250365]
[1739871015506,0.78,95830.0,95823.0,0.10250365]
[1739871015709,0.781,95830.0,95823.0,0.10250365]
[1739871015926,0.78,95830.0,95823.0,0.10250365]
[1739871016068,0.778,95830.0,95823.0,0.10250365]
[1739871016279,0.778,95830.0,95823.0,0.10450365]
[1739871016477,0.778,95830.0,95823.0,0.10550365]
[1739871016885,0.7781702,95830.0,95823.0,0.10550365]
[1739871018101,0.7781702,95830.0,95823.0,0.10450365]
[1739871018302,0.7781702,95830.0,95823.0,0.10650365]
[1739871018988,0.7781702,95830.0,95823.0,0.10450365]
[1739871019398,0.7781702,95830.0,95823.0,0.10650365]
[1739871020020,0.7781702,95830.0,95825.0,0.0751]
[1739871020233,0.7781702,95830.0,95829.0,0.231628]
[1739871020448,0.7781702,95830.0,95829.0,0.33413165]
[1739871021113,0.7781702,95830.0,95829.0,0.37913165]
[1739871022258,0.7781702,95830.0,95829.0,0.38113165]
[1739871022463,0.7781702,95830.0,95829.0,0.4866353]
[1739871023033,0.7781702,95830.0,95829.0,0.49459532]
[1739871023665,0.7781702,95830.0,95829.0,0.97309532]
[1739871024528,0.7781702,95830.0,95829.0,0.97886644]
[1739871024648,0.7781702,95830.0,95829.0,0.98086644]
[1739871024866,0.7781702,95830.0,95829.0,0.99357527]
[1739871025073,0.7781702,95830.0,95829.0,0.99057527]
[1739871025282,0.7781702,95830.0,95829.0,0.99557527]
[1739871025736,0.7791702,95830.0,95829.0,0.99057527]
[1739871025905,0.7791702,95830.0,95829.0,0.99757527]
[1739871026101,0.7791702,95830.0,95829.0,0.99057527]
[1739871026513,0.7791702,95830.0,95829.0,0.99757527]
[1739871026766,0.7791702,95830.0,95829.0,0.99057527]
[1739871027062,0.7791702,95830.0,95829.0,0.99757527]
[1739871027268,0.7781702,95830.0,95829.0,0.99557527]
[1739871027470,0.7781702,95830.0,95829.0,1.53437527]
[1739871027666,0.7791702,95830.0,95829.0,1.54137527]
[1739871028098,0.7781702,95830.0,95829.0,1.53437527]
[1739871028309,0.7791702,95830.0,95829.0,1.54137527]
[1739871028747,0.7791702,95830.0,95829.0,1.39137527]
[1739871029451,0.7791702,95830.0,95829.0,1.37866644]
[1739871030634,0.7791702,95830.0,95829.0,1.37089532]
[1739871032481,0.7791702,95830.0,95829.0,1.21436732]
[1739871033510,0.7791702,95830.0,95829.0,0.57306367]
[1739871033841,0.7791702,95830.0,95829.0,0.56510365]
[1739871034262,0.7791702,95830.0,95829.0,0.49000365]
[1739871034875,0.9356972,95830.0,95829.0,0.3425]
[1739871035088,0.9346972,95830.0,95829.0,0.3355]
[1739871035453,0.9356972,95830.0,95829.0,0.3335]
[1739871035666,0.9356972,95830.0,95829.0,0.3405]
[1739871036306,0.9356972,95830.0,95829.0,0.012]
[1739871036538,1.0141972,95830.0,95829.0,0.005]
[1739871036962,3.2553102,95830.0,95829.0,0.005]
[1739871037653,0.156536,95824.0,95823.0,0.0003404]
[1739871037865,1.249998,95824.0,95823.0,0.0003404]
[1739871038069,1.00079539,95824.0,95823.0,0.0003404]
[1739871038284,1.15731,95824.0,95823.0,0.0003404]
[1739871038829,0.420859,95824.0,95823.0,0.0003404]
[1739871039048,0.01635357,95824.0,95823.0,0.0003404]
[1739871039483,0.17288957,95824.0,95823.0,0.0003404]
[1739871040737,0.01635357,95824.0,95823.0,0.0003404]
[1739871040942,0.17288957,95824.0,95823.0,0.0003404]
[1739871041149,0.17388957,95824.0,95823.0,0.0003404]
[1739871041353,0.01735357,95824.0,95823.0,0.0003404]
[1739871041552,0.17288957,95824.0,95823.0,0.0003404]
[1739871041771,0.01635357,95824.0,95823.0,0.0003404]
[1739871042119,0.01635357,95824.0,95823.0,0.0033404]
[1739871042299,0.17288957,95824.0,95823.0,0.0033404]
[1739871042736,0.156535,95825.0,95823.0,0.0033404]
[1739871042943,0.156536,95824.0,95823.0,0.0033404]
[1739871043147,0.208707,95828.0,95823.0,0.0033404]
[1739871043356,0.156536,95824.0,95823.0,0.0033404]
[1739871044193,0.156536,95824.0,95823.0,0.0023404]
[1739871044608,0.156536,95824.0,95823.0,0.0033404]
[1739871045062,0.156536,95824.0,95823.0,0.0023404]
[1739871045502,0.156536,95824.0,95823.0,0.0033404]
[1739871045929,0.844081,95824.0,95823.0,0.0033404]
[1739871046149,1.314111,95824.0,95823.0,0.0033404]
[1739871046399,1.292646,95824.0,95823.0,0.0033404]
[1739871047080,1.244639,95824.0,95823.0,0.0033404]
[1739871047550,1.26099247,95824.0,95823.0,0.0033404]
[1739871048196,0.01635347,95824.0,95823.0,0.0033404]
[1739871049482,0.01635347,95824.0,95823.0,0.10584405]
[1739871049704,0.01635347,95824.0,95823.0,0.26238205]
[1739871050160,0.01635347,95824.0,95823.0,0.10584405]
[1739871050808,0.01635347,95824.0,95823.0,0.26238205]
[1739871051226,0.01635347,95824.0,95823.0,0.10584405]
[1739871051505,0.01635347,95824.0,95823.0,0.16595889]
[1739871052145,0.01635347,95824.0,95823.0,0.32249689]
[1739871052329,0.01635347,95824.0,95823.0,0.16595889]
[1739871052770,0.7781702,95830.0,95823.0,0.16595889]
[1739871053201,0.7781702,95830.0,95829.0,0.156528]
[1739871053416,0.7781702,95830.0,95829.0,0.39688539]
[1739871053636,0.7707302,95830.0,95829.0,0.39688539]
[1739871054073,0.7717302,95830.0,95829.0,0.39688539]
[1739871054512,0.7707302,95830.0,95829.0,0.39688539]
[1739871054725,0.7717302,95830.0,95829.0,0.72938539]
[1739871054943,0.7717302,95830.0,95829.0,0.73538539]
[1739871055155,0.7717302,95830.0,95829.0,0.72538539]
[1739871055385,0.7707302,95830.0,95829.0,0.73138539]
[1739871055588,0.7717302,95830.0,95829.0,0.73538539]
[1739871056958,0.0011702,95830.0,95829.0,0.73538539]
[1739871059901,0.0001702,95830.0,95829.0,0.73138539]
[1739871060293,0.0011702,95830.0,95829.0,0.73038539]
[1739871060703,0.0011702,95830.0,95829.0,0.73638539]
[1739871061544,0.0011702,95830.0,95829.0,0.74432887]
[1739871062179,0.0011702,95830.0,95829.0,0.34744348]
[1739871062387,0.7717702,95830.0,95829.0,0.34744348]
[1739871062602,0.7717702,95830.0,95829.0,0.01894348]
[1739871062603,0.9282972,95830.0,95829.0,0.01894348]
[1739871062816,1.3042032,95830.0,95829.0,0.011]
[1739871063061,2.5992072,95830.0,95829.0,0.006]
[1739871063286,2.9096192,95830.0,95829.0,0.005]
[1739871063500,2.8535642,95830.0,95829.0,0.005]
[1739871063712,2.2895762,95830.0,95829.0,0.006]
[1739871063922,0.156536,95824.0,95823.0,0.0003404]
[1739871064623,0.156535,95825.0,95823.0,0.0003404]
[1739871065062,0.7717702,95830.0,95823.0,0.0003404]
[1739871065278,0.7717702,95830.0,95823.0,0.10284405]
[1739871065492,0.7717702,95830.0,95823.0,0.10484405]
[1739871065735,0.7717702,95830.0,95824.0,0.01402405]
[1739871065954,0.7717702,95830.0,95825.0,0.10354713]
[1739871066173,0.7717702,95830.0,95829.0,0.156528]
[1739871066383,0.7717702,95830.0,95825.0,0.10250365]
[1739871066779,0.7717702,95830.0,95826.0,0.257711]
[1739871066780,0.7707702,95830.0,95826.0,0.257711]
[1739871066996,0.7707702,95830.0,95827.0,0.18081995]
[1739871067218,0.7707702,95830.0,95829.0,0.156528]
[1739871067426,0.7707702,95830.0,95829.0,0.25903165]
[1739871068497,0.7707702,95830.0,95829.0,0.25937205]
[1739871068711,0.7707702,95830.0,95829.0,0.10284405]
[1739871068919,0.7707702,95830.0,95829.0,0.16871653]
[1739871069131,0.7707702,95830.0,95829.0,0.32524453]
[1739871070201,0.7717702,95830.0,95829.0,0.17371653]
[1739871070422,0.7717702,95830.0,95829.0,0.33524453]
[1739871070640,0.7717702,95830.0,95829.0,0.17371653]
[1739871070889,0.7707702,95830.0,95829.0,0.17171653]
[1739871071351,0.7707702,95830.0,95829.0,0.10584405]
[1739871071571,0.7707702,95830.0,95829.0,0.10684405]
[1739871071780,0.7707702,95830.0,95829.0,0.10284405]
[1739871072338,0.7707702,95830.0,95829.0,0.10684405]
[1739871073020,0.7707702,95830.0,95829.0,0.10984405]
[1739871073228,0.7707702,95830.0,95829.0,0.1678849]
[1739871073684,0.7707702,95830.0,95829.0,0.1638849]
[1739871073878,0.7707702,95830.0,95829.0,0.10884405]
[1739871075343,0.7707702,95830.0,95829.0,0.0063404]
[1739871076107,0.7707702,95830.0,95829.0,0.0033404]
[1739871076312,0.7707702,95830.0,95829.0,0.0063404]
[1739871076505,0.7707702,95830.0,95829.0,0.0033404]
[1739871076706,0.7707702,95830.0,95829.0,0.0003404]
[1739871076890,0.7707702,95830.0,95829.0,0.0023404]
[1739871077288,0.7707702,95830.0,95829.0,0.0053404]
[1739871077723,0.7707702,95830.0,95829.0,0.0003404]
[1739871077950,0.7707702,95830.0,95829.0,0.0023404]
[1739871078125,0.7707702,95830.0,95829.0,0.0043404]
[1739871078579,0.7707702,95830.0,95829.0,0.0023404]
[1739871079184,0.7707702,95830.0,95829.0,0.0003404]
[1739871079591,0.7707702,95830.0,95829.0,0.0023404]
[1739871080070,0.7707702,95830.0,95829.0,0.0043404]
[1739871080947,0.54986868,95830.0,95829.0,0.0043404]
[1739871081361,0.54986868,95830.0,95829.0,0.04552848]
[1739871082913,0.54986868,95830.0,95829.0,0.30456013]
[1739871083114,0.54986868,95830.0,95829.0,0.14803213]
[1739871083763,0.00511096,95835.0,95829.0,0.14403213]
[1739871083997,0.00061121,95840.0,95839.0,0.156512]
[1739871084185,0.00061121,95840.0,95839.0,0.34001565]
[1739871086263,0.00061121,95840.0,95839.0,0.36532544]
[1739871086465,0.00061121,95840.0,95839.0,0.34796096]
[1739871086668,0.00061121,95840.0,95839.0,0.42649496]
[1739871087388,0.00061121,95840.0,95839.0,0.42449496]
[1739871087549,0.00061121,95840.0,95839.0,0.43649496]
[1739871089064,0.55041121,95840.0,95839.0,0.43649496]
[1739871089378,0.55041121,95840.0,95839.0,0.27998296]
[1739871089579,0.55041121,95840.0,95839.0,0.43649496]
[1739871089814,0.55041121,95840.0,95839.0,0.75899496]
[1739871090646,0.55041121,95840.0,95839.0,0.75299496]
[1739871090798,0.55041121,95840.0,95839.0,0.75899496]
[1739871090999,0.55041121,95840.0,95839.0,0.76499496]
[1739871091411,0.55041121,95840.0,95839.0,0.75704965]
[1739871093169,0.55041121,95840.0,95839.0,0.60053765]
[1739871094065,0.55041121,95840.0,95839.0,0.75704965]
[1739871094204,0.55041121,95840.0,95839.0,0.7649866]
[1739871094640,0.55041121,95840.0,95839.0,0.6084746]
[1739871094837,0.55041121,95840.0,95839.0,0.6024746]
[1739871095041,0.55041121,95840.0,95839.0,0.6084746]
[1739871095840,0.55041121,95840.0,95839.0,0.59453765]
[1739871096238,0.55141121,95840.0,95839.0,0.60053765]
[1739871096516,0.55141121,95840.0,95839.0,0.44300365]
[1739871096722,0.54611121,95840.0,95839.0,0.44300365]
[1739871097350,0.54511121,95840.0,95839.0,0.3345]
[1739871097522,0.54611121,95840.0,95839.0,0.3345]
[1739871097765,0.54611121,95840.0,95839.0,0.3405]
[1739871098513,0.54611121,95840.0,95839.0,0.3345]
[1739871098923,0.54611121,95840.0,95839.0,0.3285]
[1739871098924,0.70162121,95840.0,95839.0,0.3285]
[1739871099118,0.93485321,95840.0,95839.0,0.3285]
[1739871099346,1.46405321,95840.0,95839.0,0.3315]
[1739871099577,1.29494021,95840.0,95839.0,0.3315]
[1739871099720,1.29494021,95840.0,95839.0,0.3285]
[1739871099721,1.24031321,95840.0,95839.0,0.3285]
[1739871099929,1.08380321,95840.0,95829.0,0.0003404]
[1739871100144,0.70162121,95840.0,95839.0,0.003]
[1739871100339,0.15651,95840.0,95839.0,0.006]
[1739871100726,0.523632,95840.0,95839.0,0.006]
[1739871101520,0.650226,95840.0,95839.0,0.006]
[1739871101952,0.650226,95840.0,95839.0,0.003]
[1739871103157,0.650226,95840.0,95839.0,0.006]
[1739871105132,1.195326,95840.0,95839.0,0.006]
[1739871107510,1.2116771,95840.0,95839.0,0.006]
[1739871108187,0.156525,95831.0,95830.0,0.0003404]
[1739871108391,3.922194,95831.0,95830.0,0.0003404]
[1739871108613,4.007504,95831.0,95830.0,0.0003404]
[1739871108806,3.535064,95831.0,95830.0,0.0003404]
[1739871109070,3.530361,95831.0,95830.0,0.0003404]
[1739871110663,2.188417,95831.0,95830.0,0.0003404]
[1739871110871,5.151656,95831.0,95830.0,0.0003404]
[1739871111079,6.868074,95831.0,95830.0,0.0003404]
[1739871111334,6.96354,95831.0,95830.0,0.0003404]
[1739871111579,6.516754,95831.0,95830.0,0.0003404]
[1739871111791,6.4028551,95831.0,95830.0,0.0003404]
[1739871113187,6.42349379,95831.0,95830.0,0.0003404]
[1739871114299,6.36346979,95831.0,95830.0,0.0003404]
[1739871115794,6.36346979,95831.0,95829.0,0.0003404]
[1739871115795,0.306527,95830.0,95829.0,0.0003404]
[1739871116028,6.82120865,95830.0,95829.0,0.0003404]
[1739871116228,0.306536,95824.0,95821.0,0.0003404]
[1739871116397,7.711756,95824.0,95821.0,0.0003404]
[1739871116619,7.38721965,95824.0,95821.0,0.0003404]
[1739871116840,6.11916065,95824.0,95821.0,0.0003404]
[1739871117052,5.68673065,95824.0,95821.0,0.0003404]
[1739871117251,5.65403065,95824.0,95821.0,0.0003404]
[1739871118157,5.12559565,95824.0,95821.0,0.0003404]
[1739871118605,5.07956765,95824.0,95821.0,0.0003404]
[1739871118810,4.97348165,95824.0,95821.0,0.0003404]
[1739871119996,5.08748165,95824.0,95821.0,0.0003404]
[1739871120435,5.10383683,95824.0,95821.0,0.0003404]
[1739871121069,4.78078483,95824.0,95821.0,0.0003404]
[1739871121277,4.64161483,95824.0,95821.0,0.0003404]
[1739871121696,4.58279183,95824.0,95821.0,0.0003404]
[1739871122525,0.156571,95803.0,95793.0,0.0003404]
[1739871122732,5.140005,95803.0,95793.0,0.0003404]
[1739871122940,5.208406,95803.0,95793.0,0.0003404]
[1739871123144,4.822553,95803.0,95793.0,0.0003404]
[1739871123362,4.972553,95803.0,95793.0,0.0003404]
[1739871123775,4.972553,95803.0,95802.0,0.00078161]
[1739871124227,4.99849879,95803.0,95802.0,0.00078161]
[1739871124651,4.99949879,95803.0,95802.0,0.00078161]
[1739871124865,5.00249879,95803.0,95802.0,0.00078161]
[1739871125051,0.306574,95801.0,95793.0,0.0003404]
[1739871125293,0.306574,95801.0,95800.0,0.00039594]
[1739871125508,5.651554,95802.0,95800.0,0.00039594]
[1739871125721,0.156574,95801.0,95800.0,0.00039594]
[1739871125930,6.50303165,95801.0,95800.0,0.00039594]
[1739871126135,5.58653465,95801.0,95800.0,0.00039594]
[1739871126344,5.19330265,95801.0,95800.0,0.00039594]
[1739871126546,5.19930265,95801.0,95800.0,0.00039594]
[1739871127557,5.34830265,95801.0,95800.0,0.00039594]
[1739871127763,0.15,95800.0,95793.0,0.0003404]
[1739871128003,0.15,95791.0,95777.0,4.41e-05]
[1739871128195,0.156617,95775.0,95774.0,4.37e-05]
[1739871128408,1.282648,95775.0,95774.0,8.779e-05]
[1739871128617,0.13196765,95790.0,95774.0,8.779e-05]
[1739871128830,0.30383,95789.0,95776.0,0.1256]
[1739871129031,0.00522578,95799.0,95778.0,0.0792]
[1739871129240,0.01635997,95791.0,95790.0,0.156592]
[1739871129440,0.01635997,95791.0,95790.0,0.1273]
[1739871130088,0.01635997,95791.0,95790.0,0.39912565]
[1739871130715,0.01635997,95791.0,95790.0,0.24253365]
[1739871131337,0.01735997,95791.0,95790.0,0.40512565]
[1739871131715,0.01835997,95791.0,95790.0,0.24853365]
[1739871131931,0.01835997,95791.0,95790.0,0.23580365]
[1739871132628,0.002,95791.0,95790.0,0.23580365]
[1739871132830,0.002,95791.0,95790.0,0.1333]
[1739871133033,0.15859,95791.0,95790.0,0.1333]
[1739871133241,0.15859,95791.0,95790.0,0.006]
[1739871133661,0.002,95791.0,95790.0,0.006]
[1739871134249,0.15,95799.0,95782.0,0.0792]
[1739871134421,0.705316,95798.0,95783.0,0.10250365]
[1739871134660,0.156591,95791.0,95790.0,0.002]
[1739871135058,0.208782,95794.0,95790.0,0.002]
[1739871135199,0.15,95797.0,95783.0,0.10250365]
[1739871135410,0.407147,95796.0,95783.0,0.10250365]
[1739871135651,0.156589,95792.0,95783.0,0.10450365]
[1739871136223,0.15,95806.0,95783.0,0.10450365]
[1739871136536,0.208782,95794.0,95783.0,0.10450365]
[1739871136766,0.15659,95791.0,95783.0,0.10450365]
[1739871136975,0.156596,95788.0,95783.0,0.10450365]
[1739871137147,0.01635869,95792.0,95783.0,0.10450365]
[1739871137353,0.01635869,95792.0,95783.0,0.10250365]
[1739871137702,0.17294769,95792.0,95790.0,0.003]
[1739871137926,0.01635869,95792.0,95790.0,0.003]
[1739871138148,0.01635869,95792.0,95783.0,0.10250365]
[1739871138569,0.01635869,95792.0,95783.0,0.10550365]
[1739871138776,0.01635869,95792.0,95783.0,0.10250365]
[1739871139002,0.01635869,95792.0,95790.0,0.003]
[1739871139451,0.01635869,95792.0,95783.0,0.10250365]
[1739871139658,0.156593,95790.0,95783.0,0.10250365]
[1739871139870,0.17294869,95792.0,95783.0,0.10250365]
[1739871140296,0.01635869,95792.0,95783.0,0.10250365]
[1739871140502,0.156591,95791.0,95783.0,0.10250365]
[1739871140914,0.156591,95791.0,95783.0,0.10550365]
[1739871141057,0.17294769,95792.0,95783.0,0.10550365]
[1739871141495,0.156591,95791.0,95783.0,0.10550365]
[1739871141697,0.01635869,95792.0,95783.0,0.10250365]
[1739871141900,0.01635869,95792.0,95784.0,0.09195588]
[1739871142112,0.01635869,95792.0,95791.0,0.28039]
[1739871142310,0.15,95806.0,95795.0,0.156583]
[1739871142520,0.15,95806.0,95796.0,0.0777]